[Event "Titled Tuesday Blitz August 22 Early 2023"]
[White "Frolyanov, Dmitry"]
[Black "Lopez Del Alamo, Antonio"]
[WhiteFideId "4151976"]
[BlackFideId "2227339"]
[WhiteElo "2630"]
[BlackElo "2343"]
[Result "1-0"]
[Round "2"]
[TimeControl "180+1"]
[Date "2023.08.22"]
[WhiteClock "0:01:05"]
[BlackClock "0:00:11"]
[Board "127"]

1. d4 {[%clk 0:03:00]}  Nf6 {[%clk 0:02:59]} 2. c4 {[%clk 0:03:00]}  g6 {[%clk 0:02:59]} 3. Nc3 {[%clk 0:03:00]}  Bg7 {[%clk 0:03:00]} 4. e4 {[%clk 0:03:00]}  d6 {[%clk 0:03:00]} 5. Be2 {[%clk 0:02:56]}  O-O {[%clk 0:03:01]} 6. Be3 {[%clk 0:02:56]}  e5 {[%clk 0:03:01]} 7. d5 {[%clk 0:02:56]}  c6 {[%clk 0:03:00]} 8. g4 {[%clk 0:02:40]}  cxd5 {[%clk 0:02:58]} 9. cxd5 {[%clk 0:02:41]}  a6 {[%clk 0:02:56]} 10. g5 {[%clk 0:02:35]}  Nfd7 {[%clk 0:02:56]} 11. h4 {[%clk 0:02:34]}  b5 {[%clk 0:02:51]} 12. a3 {[%clk 0:02:34]}  Nb6 {[%clk 0:02:25]} 13. Nf3 {[%clk 0:02:12]}  N8d7 {[%clk 0:02:22]} 14. Nd2 {[%clk 0:02:10]}  Bb7 {[%clk 0:02:15]} 15. h5 {[%clk 0:02:09]}  Rc8 {[%clk 0:02:15]} 16. hxg6 {[%clk 0:02:08]}  hxg6 {[%clk 0:02:05]} 17. Bg4 {[%clk 0:02:08]}  Rxc3 {[%clk 0:01:57]} 18. bxc3 {[%clk 0:02:07]}  Qc7 {[%clk 0:01:53]} 19. Rc1 {[%clk 0:02:03]}  Nc5 {[%clk 0:01:48]} 20. Kf1 {[%clk 0:01:56]}  Nca4 {[%clk 0:01:26]} 21. Qf3 {[%clk 0:01:45]}  Nc4 {[%clk 0:01:18]} 22. Nxc4 {[%clk 0:01:41]}  Qxc4+ {[%clk 0:01:18]} 23. Kg2 {[%clk 0:01:35]}  a5 {[%clk 0:01:00]} 24. Bd2 {[%clk 0:01:34]}  Nc5 {[%clk 0:00:57]} 25. Rce1 {[%clk 0:01:29]}  Qd3 {[%clk 0:00:18]} 26. Qxd3 {[%clk 0:01:22]}  Nxd3 {[%clk 0:00:19]} 27. Rb1 {[%clk 0:01:20]}  Ba6 {[%clk 0:00:19]} 28. Be2 {[%clk 0:01:19]}  Nc5 {[%clk 0:00:18]} 29. f3 {[%clk 0:01:12]}  Rb8 {[%clk 0:00:16]} 30. c4 {[%clk 0:01:12]}  b4 {[%clk 0:00:14]} 31. axb4 {[%clk 0:01:13]}  axb4 {[%clk 0:00:14]} 32. Bxb4 {[%clk 0:01:10]}  Rc8 {[%clk 0:00:13]} 33. Bxc5 {[%clk 0:01:06]}  dxc5 {[%clk 0:00:11]} 34. Rb6 {[%clk 0:01:05]} 1-0


[Site "https://www.chess.com"]

[Event "Titled Tuesday Blitz August 22 Early 2023"]
[White "Dilanyan, Grigor"]
[Black "Labussiere, Yago"]
[WhiteFideId "13303570"]
[BlackFideId "2186969"]
[WhiteElo "2597"]
[BlackElo "2380"]
[Result "0-1"]
[Round "2"]
[TimeControl "180+1"]
[Date "2023.08.22"]
[WhiteClock "0:00:04"]
[BlackClock "0:00:06"]
[Board "128"]

1. e4 {[%clk 0:02:52]}  c5 {[%clk 0:02:59]} 2. Nf3 {[%clk 0:02:52]}  Nc6 {[%clk 0:02:57]} 3. Bb5 {[%clk 0:02:50]}  g6 {[%clk 0:02:57]} 4. O-O {[%clk 0:02:47]}  Bg7 {[%clk 0:02:57]} 5. Re1 {[%clk 0:02:47]}  e5 {[%clk 0:02:50]} 6. b4 {[%clk 0:02:38]}  cxb4 {[%clk 0:02:40]} 7. a3 {[%clk 0:02:37]}  Nge7 {[%clk 0:02:36]} 8. axb4 {[%clk 0:02:36]}  Nxb4 {[%clk 0:02:36]} 9. Ba3 {[%clk 0:02:28]}  Nbc6 {[%clk 0:02:33]} 10. Bd6 {[%clk 0:02:28]}  O-O {[%clk 0:02:29]} 11. Nc3 {[%clk 0:02:28]}  Re8 {[%clk 0:02:26]} 12. Bc4 {[%clk 0:02:23]}  h6 {[%clk 0:02:15]} 13. Nh4 {[%clk 0:02:11]}  Nd4 {[%clk 0:01:37]} 14. Qg4 {[%clk 0:01:57]}  Ne6 {[%clk 0:01:35]} 15. Ra3 {[%clk 0:01:42]}  a6 {[%clk 0:01:33]} 16. Rb1 {[%clk 0:01:33]}  h5 {[%clk 0:01:20]} 17. Qg3 {[%clk 0:01:28]}  Kh7 {[%clk 0:00:19]} 18. Nf3 {[%clk 0:01:04]}  f6 {[%clk 0:00:16]} 19. Nh4 {[%clk 0:01:00]}  Nf4 {[%clk 0:00:16]} 20. Kf1 {[%clk 0:00:46]}  g5 {[%clk 0:00:16]} 21. Nf3 {[%clk 0:00:42]}  Neg6 {[%clk 0:00:10]} 22. Nd5 {[%clk 0:00:27]}  Nxd5 {[%clk 0:00:09]} 23. exd5 {[%clk 0:00:21]}  Bf8 {[%clk 0:00:07]} 24. Bxf8 {[%clk 0:00:19]}  Rxf8 {[%clk 0:00:08]} 25. Bd3 {[%clk 0:00:19]}  d6 {[%clk 0:00:06]} 26. Rc3 {[%clk 0:00:18]}  b5 {[%clk 0:00:04]} 27. h4 {[%clk 0:00:16]}  g4 {[%clk 0:00:04]} 28. Nh2 {[%clk 0:00:13]}  f5 {[%clk 0:00:05]} 29. Qh3 {[%clk 0:00:13]}  gxh3 {[%clk 0:00:05]} 30. Nf3 {[%clk 0:00:12]}  e4 {[%clk 0:00:04]} 31. Ng5+ {[%clk 0:00:12]}  Kh6 {[%clk 0:00:04]} 32. Be2 {[%clk 0:00:09]}  Nxh4 {[%clk 0:00:05]} 33. Rg3 {[%clk 0:00:08]}  hxg2+ {[%clk 0:00:04]} 34. Kg1 {[%clk 0:00:07]}  f4 {[%clk 0:00:05]} 35. Rbb3 {[%clk 0:00:05]}  Qxg5 {[%clk 0:00:05]} 36. Rxg5 {[%clk 0:00:04]}  Kxg5 {[%clk 0:00:06]} 37. Rc3 {[%clk 0:00:04]}  f3 {[%clk 0:00:06]} 38. Bd1 {[%clk 0:00:05]}  Nf5 {[%clk 0:00:06]} 39. Rc7 {[%clk 0:00:06]}  h4 {[%clk 0:00:05]} 40. Kh2 {[%clk 0:00:05]}  Rh8 {[%clk 0:00:03]} 41. d3 {[%clk 0:00:06]}  Rg8 {[%clk 0:00:03]} 42. dxe4 {[%clk 0:00:06]}  Kf4 {[%clk 0:00:04]} 43. exf5 {[%clk 0:00:06]}  g1=Q+ {[%clk 0:00:04]} 44. Kh3 {[%clk 0:00:06]}  Qg2+ {[%clk 0:00:05]} 45. Kxh4 {[%clk 0:00:05]}  Rh8+ {[%clk 0:00:05]} 46. Rh7 {[%clk 0:00:04]}  Rxh7# {[%clk 0:00:06]} 0-1


[Site "https://www.chess.com"]

[Event "Titled Tuesday Blitz August 22 Early 2023"]
[White "Bashirli, Saadat"]
[Black "Sadzikowski, Daniel"]
[WhiteFideId "13429990"]
[BlackFideId "1132253"]
[WhiteElo "2336"]
[BlackElo "2591"]
[Result "1/2-1/2"]
[Round "2"]
[TimeControl "180+1"]
[Date "2023.08.22"]
[WhiteClock "0:00:06"]
[BlackClock "0:00:08"]
[Board "129"]

1. d4 {[%clk 0:03:00]}  Nf6 {[%clk 0:02:59]} 2. e3 {[%clk 0:03:00]}  e6 {[%clk 0:02:59]} 3. f4 {[%clk 0:02:57]}  c5 {[%clk 0:02:58]} 4. c3 {[%clk 0:02:56]}  b6 {[%clk 0:02:57]} 5. Nf3 {[%clk 0:02:55]}  Bb7 {[%clk 0:02:57]} 6. Bd3 {[%clk 0:02:55]}  Be7 {[%clk 0:02:54]} 7. O-O {[%clk 0:02:52]}  d6 {[%clk 0:02:49]} 8. Qe2 {[%clk 0:02:49]}  Ne4 {[%clk 0:02:46]} 9. Nbd2 {[%clk 0:02:40]}  f5 {[%clk 0:02:32]} 10. Qd1 {[%clk 0:02:26]}  Nd7 {[%clk 0:02:27]} 11. Qc2 {[%clk 0:02:25]}  Ndf6 {[%clk 0:02:11]} 12. b3 {[%clk 0:02:19]}  O-O {[%clk 0:02:11]} 13. Bb2 {[%clk 0:02:18]}  Rc8 {[%clk 0:02:10]} 14. Rac1 {[%clk 0:01:57]}  h6 {[%clk 0:02:04]} 15. Qb1 {[%clk 0:01:48]}  Qe8 {[%clk 0:02:03]} 16. c4 {[%clk 0:01:31]}  Qh5 {[%clk 0:01:55]} 17. dxc5 {[%clk 0:01:20]}  bxc5 {[%clk 0:01:53]} 18. Bxf6 {[%clk 0:01:13]}  Nxf6 {[%clk 0:01:53]} 19. Rce1 {[%clk 0:01:06]}  Bd8 {[%clk 0:01:05]} 20. a3 {[%clk 0:00:56]}  Ba5 {[%clk 0:01:02]} 21. b4 {[%clk 0:00:54]}  cxb4 {[%clk 0:01:02]} 22. axb4 {[%clk 0:00:54]}  Bb6 {[%clk 0:01:03]} 23. Kh1 {[%clk 0:00:53]}  Ng4 {[%clk 0:01:01]} 24. c5 {[%clk 0:00:31]}  dxc5 {[%clk 0:01:01]} 25. bxc5 {[%clk 0:00:27]}  Rxc5 {[%clk 0:01:01]} 26. Re2 {[%clk 0:00:20]}  Rc3 {[%clk 0:00:53]} 27. Rfe1 {[%clk 0:00:18]}  Rd8 {[%clk 0:00:51]} 28. Bc2 {[%clk 0:00:15]}  Ba6 {[%clk 0:00:38]} 29. Qb2 {[%clk 0:00:13]}  Rdc8 {[%clk 0:00:19]} 30. Qa2 {[%clk 0:00:12]}  Bxe2 {[%clk 0:00:17]} 31. Qxe6+ {[%clk 0:00:12]}  Kh8 {[%clk 0:00:16]} 32. Bxf5 {[%clk 0:00:11]}  Rc1 {[%clk 0:00:14]} 33. Bxg4 {[%clk 0:00:09]}  Rxe1+ {[%clk 0:00:13]} 34. Nxe1 {[%clk 0:00:08]}  Rc1 {[%clk 0:00:09]} 35. h3 {[%clk 0:00:07]}  Rxe1+ {[%clk 0:00:07]} 36. Kh2 {[%clk 0:00:06]}  Qc5 {[%clk 0:00:03]} 37. Qe8+ {[%clk 0:00:06]}  Kh7 {[%clk 0:00:04]} 38. Qe4+ {[%clk 0:00:06]}  g6 {[%clk 0:00:03]} 39. Qb7+ {[%clk 0:00:06]}  Qc7 {[%clk 0:00:04]} 40. Qe4 {[%clk 0:00:06]}  Qg7 {[%clk 0:00:03]} 41. Bxe2 {[%clk 0:00:05]}  Rxe2 {[%clk 0:00:04]} 42. Nf3 {[%clk 0:00:06]}  Bc7 {[%clk 0:00:03]} 43. Qd5 {[%clk 0:00:06]}  Rb2 {[%clk 0:00:03]} 44. Qc4 {[%clk 0:00:06]}  Rb6 {[%clk 0:00:03]} 45. Nd4 {[%clk 0:00:06]}  Rf6 {[%clk 0:00:01]} 46. Ne6 {[%clk 0:00:06]}  Qe7 {[%clk 0:00:01]} 47. Nc5 {[%clk 0:00:05]}  Rf7 {[%clk 0:00:01]} 48. Ne4 {[%clk 0:00:05]}  Qf8 {[%clk 0:00:01]} 49. Nc3 {[%clk 0:00:05]}  Qg7 {[%clk 0:00:02]} 50. Nd5 {[%clk 0:00:06]}  Bb8 {[%clk 0:00:02]} 51. Qc5 {[%clk 0:00:06]}  Rb7 {[%clk 0:00:02]} 52. Qc4 {[%clk 0:00:06]}  g5 {[%clk 0:00:03]} 53. Qc6 {[%clk 0:00:06]}  gxf4 {[%clk 0:00:03]} 54. exf4 {[%clk 0:00:07]}  Bxf4+ {[%clk 0:00:03]} 55. Nxf4 {[%clk 0:00:06]}  Rc7 {[%clk 0:00:04]} 56. Qe4+ {[%clk 0:00:07]}  Kh8 {[%clk 0:00:05]} 57. Qe8+ {[%clk 0:00:07]}  Kh7 {[%clk 0:00:05]} 58. Qe4+ {[%clk 0:00:07]}  Kg8 {[%clk 0:00:06]} 59. Qe8+ {[%clk 0:00:07]}  Qf8 {[%clk 0:00:06]} 60. Qg6+ {[%clk 0:00:07]}  Qg7 {[%clk 0:00:07]} 61. Qe8+ {[%clk 0:00:07]}  Qf8 {[%clk 0:00:08]} 62. Qg6+ {[%clk 0:00:08]}  Rg7 {[%clk 0:00:08]} 63. Qe6+ {[%clk 0:00:08]}  Qf7 {[%clk 0:00:09]} 64. Qc8+ {[%clk 0:00:08]}  Kh7 {[%clk 0:00:09]} 65. Qc2+ {[%clk 0:00:08]}  Kh8 {[%clk 0:00:08]} 66. Qc8+ {[%clk 0:00:08]}  Rg8 {[%clk 0:00:08]} 67. Qc3+ {[%clk 0:00:08]}  Qg7 {[%clk 0:00:09]} 68. Qd3 {[%clk 0:00:07]}  a5 {[%clk 0:00:06]} 69. g4 {[%clk 0:00:06]}  a4 {[%clk 0:00:06]} 70. Kg2 {[%clk 0:00:06]}  Qf6 {[%clk 0:00:04]} 71. Nh5 {[%clk 0:00:05]}  Qc6+ {[%clk 0:00:04]} 72. Kg3 {[%clk 0:00:05]}  Qc7+ {[%clk 0:00:04]} 73. Kg2 {[%clk 0:00:05]}  Qb7+ {[%clk 0:00:04]} 74. Kh2 {[%clk 0:00:04]}  Qb8+ {[%clk 0:00:05]} 75. Kg2 {[%clk 0:00:04]}  Qa8+ {[%clk 0:00:05]} 76. Kh2 {[%clk 0:00:04]}  Qb8+ {[%clk 0:00:06]} 77. Kg2 {[%clk 0:00:05]}  Qb7+ {[%clk 0:00:07]} 78. Kh2 {[%clk 0:00:05]}  Qc7+ {[%clk 0:00:07]} 79. Kg2 {[%clk 0:00:05]}  Qf7 {[%clk 0:00:02]} 80. Qd4+ {[%clk 0:00:05]}  Kh7 {[%clk 0:00:02]} 81. Nf6+ {[%clk 0:00:05]}  Kg6 {[%clk 0:00:02]} 82. Nxg8 {[%clk 0:00:05]}  Qxg8 {[%clk 0:00:03]} 83. Qxa4 {[%clk 0:00:05]}  Qd5+ {[%clk 0:00:04]} 84. Kg3 {[%clk 0:00:05]}  Qd3+ {[%clk 0:00:04]} 85. Kg2 {[%clk 0:00:04]}  Qd2+ {[%clk 0:00:04]} 86. Kg3 {[%clk 0:00:05]}  Qe3+ {[%clk 0:00:05]} 87. Kg2 {[%clk 0:00:05]}  Qe2+ {[%clk 0:00:06]} 88. Kg3 {[%clk 0:00:05]}  Qe3+ {[%clk 0:00:06]} 89. Kg2 {[%clk 0:00:05]}  Qe2+ {[%clk 0:00:07]} 90. Kg3 {[%clk 0:00:06]}  Qe3+ {[%clk 0:00:08]} 1/2-1/2


[Site "https://www.chess.com"]

[Event "Titled Tuesday Blitz August 22 Early 2023"]
[White "Kuchava, Ana"]
[Black "NovoselovRoman"]
[WhiteFideId "13605348"]
[WhiteElo "2174"]
[BlackElo "2566"]
[Result "0-1"]
[Round "2"]
[TimeControl "180+1"]
[Date "2023.08.22"]
[WhiteClock "0:00:00"]
[BlackClock "0:00:11"]
[Board "130"]

1. d4 {[%clk 0:03:00]}  d5 {[%clk 0:02:32]} 2. Nf3 {[%clk 0:02:33]}  Nf6 {[%clk 0:02:29]} 3. c4 {[%clk 0:02:32]}  e6 {[%clk 0:02:29]} 4. Nc3 {[%clk 0:02:32]}  a6 {[%clk 0:02:29]} 5. Bg5 {[%clk 0:02:31]}  Be7 {[%clk 0:02:29]} 6. e3 {[%clk 0:02:30]}  dxc4 {[%clk 0:02:29]} 7. Bxc4 {[%clk 0:02:31]}  b5 {[%clk 0:02:30]} 8. Bd3 {[%clk 0:02:31]}  Bb7 {[%clk 0:02:29]} 9. O-O {[%clk 0:02:31]}  Nbd7 {[%clk 0:02:30]} 10. Qe2 {[%clk 0:02:27]}  c5 {[%clk 0:02:30]} 11. a3 {[%clk 0:02:20]}  cxd4 {[%clk 0:02:29]} 12. exd4 {[%clk 0:02:18]}  O-O {[%clk 0:02:29]} 13. Rad1 {[%clk 0:02:18]}  Rc8 {[%clk 0:02:29]} 14. Ne5 {[%clk 0:02:13]}  Nb6 {[%clk 0:02:21]} 15. Rfe1 {[%clk 0:02:01]}  Nbd5 {[%clk 0:02:19]} 16. Bd2 {[%clk 0:01:53]}  Nxc3 {[%clk 0:02:17]} 17. Bxc3 {[%clk 0:01:45]}  h6 {[%clk 0:02:02]} 18. Bb1 {[%clk 0:01:24]}  Nd5 {[%clk 0:00:56]} 19. Qd3 {[%clk 0:01:10]}  f5 {[%clk 0:00:54]} 20. Bd2 {[%clk 0:01:01]}  Bd6 {[%clk 0:00:46]} 21. Qb3 {[%clk 0:00:49]}  Qh4 {[%clk 0:00:33]} 22. Bc1 {[%clk 0:00:19]}  Rf6 {[%clk 0:00:29]} 23. g3 {[%clk 0:00:14]}  Qh5 {[%clk 0:00:26]} 24. Be3 {[%clk 0:00:03]}  Qh3 {[%clk 0:00:13]} 25. Bd3 {[%clk 0:00:00]}  Nxe3 {[%clk 0:00:11]} 0-1


[Site "https://www.chess.com"]

[Event "Titled Tuesday Blitz August 22 Early 2023"]
[White "Sarana, Alexey"]
[Black "Hajiyev, Kanan"]
[WhiteFideId "24133795"]
[BlackFideId "13404148"]
[WhiteElo "3023"]
[BlackElo "2512"]
[Result "1-0"]
[Round "2"]
[TimeControl "180+1"]
[Date "2023.08.22"]
[WhiteClock "0:00:49"]
[BlackClock "0:00:00"]
[Board "134"]

1. d4 {[%clk 0:03:00]}  Nf6 {[%clk 0:02:59]} 2. c4 {[%clk 0:03:01]}  e6 {[%clk 0:02:59]} 3. Nc3 {[%clk 0:03:02]}  Bb4 {[%clk 0:02:59]} 4. e3 {[%clk 0:03:02]}  O-O {[%clk 0:02:58]} 5. Bd3 {[%clk 0:03:02]}  d5 {[%clk 0:02:58]} 6. a3 {[%clk 0:03:02]}  Be7 {[%clk 0:02:54]} 7. Nf3 {[%clk 0:03:02]}  c5 {[%clk 0:02:51]} 8. dxc5 {[%clk 0:03:02]}  dxc4 {[%clk 0:02:49]} 9. Bxc4 {[%clk 0:03:01]}  Qxd1+ {[%clk 0:02:50]} 10. Kxd1 {[%clk 0:03:02]}  Rd8+ {[%clk 0:02:49]} 11. Ke2 {[%clk 0:03:02]}  Bxc5 {[%clk 0:02:48]} 12. b4 {[%clk 0:03:03]}  Be7 {[%clk 0:02:46]} 13. Bb2 {[%clk 0:03:02]}  a5 {[%clk 0:02:42]} 14. b5 {[%clk 0:02:54]}  Nbd7 {[%clk 0:02:40]} 15. Na4 {[%clk 0:02:52]}  Ne4 {[%clk 0:02:12]} 16. Rhd1 {[%clk 0:02:50]}  Nec5 {[%clk 0:02:08]} 17. Nxc5 {[%clk 0:02:46]}  Nxc5 {[%clk 0:02:06]} 18. Rxd8+ {[%clk 0:02:43]}  Bxd8 {[%clk 0:02:07]} 19. Rd1 {[%clk 0:02:43]}  Be7 {[%clk 0:02:04]} 20. Bd4 {[%clk 0:02:33]}  Kf8 {[%clk 0:01:53]} 21. Ne5 {[%clk 0:02:03]}  f6 {[%clk 0:01:47]} 22. Bxc5 {[%clk 0:01:43]}  Bxc5 {[%clk 0:01:48]} 23. Nd7+ {[%clk 0:01:44]}  Bxd7 {[%clk 0:01:46]} 24. Rxd7 {[%clk 0:01:45]}  Bxa3 {[%clk 0:01:33]} 25. Bxe6 {[%clk 0:01:42]}  Be7 {[%clk 0:01:28]} 26. Rxb7 {[%clk 0:01:43]}  a4 {[%clk 0:01:28]} 27. b6 {[%clk 0:01:39]}  a3 {[%clk 0:01:20]} 28. Ra7 {[%clk 0:01:38]}  Rb8 {[%clk 0:01:16]} 29. b7 {[%clk 0:01:37]}  Bd6 {[%clk 0:01:10]} 30. Bd5 {[%clk 0:01:35]}  Ke7 {[%clk 0:01:09]} 31. h4 {[%clk 0:01:33]}  g6 {[%clk 0:01:05]} 32. g4 {[%clk 0:01:33]}  Kd7 {[%clk 0:01:01]} 33. Ra6 {[%clk 0:01:32]}  Kc7 {[%clk 0:01:00]} 34. f4 {[%clk 0:01:25]}  Kd7 {[%clk 0:00:52]} 35. Kf3 {[%clk 0:01:24]}  Re8 {[%clk 0:00:49]} 36. e4 {[%clk 0:01:24]}  Rb8 {[%clk 0:00:47]} 37. Ke3 {[%clk 0:01:19]}  Bc5+ {[%clk 0:00:44]} 38. Ke2 {[%clk 0:01:18]}  Bd6 {[%clk 0:00:45]} 39. Kf3 {[%clk 0:01:18]}  Kc7 {[%clk 0:00:45]} 40. g5 {[%clk 0:01:11]}  fxg5 {[%clk 0:00:36]} 41. e5 {[%clk 0:01:11]}  g4+ {[%clk 0:00:29]} 42. Kxg4 {[%clk 0:01:11]}  Be7 {[%clk 0:00:30]} 43. h5 {[%clk 0:01:11]}  Rd8 {[%clk 0:00:22]} 44. hxg6 {[%clk 0:01:07]}  hxg6 {[%clk 0:00:18]} 45. Be4 {[%clk 0:01:06]}  Rg8 {[%clk 0:00:08]} 46. Ra4 {[%clk 0:00:55]}  Rb8 {[%clk 0:00:07]} 47. Ra8 {[%clk 0:00:53]}  Bd8 {[%clk 0:00:03]} 48. Ra6 {[%clk 0:00:50]}  Be7 {[%clk 0:00:03]} 49. Rxg6 {[%clk 0:00:49]}  Bc5 {[%clk 0:00:00]} 50. Rc6+ {[%clk 0:00:49]} 1-0


[Site "https://www.chess.com"]

[Event "Titled Tuesday Blitz August 22 Early 2023"]
[White "Levine, David"]
[Black "Zakhartsov, Vladimir"]
[WhiteFideId "2011611"]
[BlackFideId "4145097"]
[WhiteElo "2021"]
[BlackElo "2907"]
[Result "0-1"]
[Round "2"]
[TimeControl "180+1"]
[Date "2023.08.22"]
[WhiteClock "0:00:00"]
[BlackClock "0:01:31"]
[Board "135"]

1. d4 {[%clk 0:03:00]}  Nf6 {[%clk 0:02:59]} 2. c4 {[%clk 0:02:59]}  e6 {[%clk 0:02:58]} 3. g3 {[%clk 0:02:59]}  c5 {[%clk 0:02:58]} 4. d5 {[%clk 0:02:59]}  exd5 {[%clk 0:02:59]} 5. cxd5 {[%clk 0:02:59]}  b5 {[%clk 0:02:59]} 6. e4 {[%clk 0:02:50]}  Nxe4 {[%clk 0:02:59]} 7. Bg2 {[%clk 0:02:50]}  Nd6 {[%clk 0:02:58]} 8. Bf4 {[%clk 0:02:46]}  Be7 {[%clk 0:02:58]} 9. Nf3 {[%clk 0:02:44]}  O-O {[%clk 0:02:57]} 10. O-O {[%clk 0:02:43]}  Bb7 {[%clk 0:02:57]} 11. Re1 {[%clk 0:02:40]}  Na6 {[%clk 0:02:53]} 12. a4 {[%clk 0:02:37]}  b4 {[%clk 0:02:51]} 13. Qc2 {[%clk 0:02:28]}  f6 {[%clk 0:02:47]} 14. Nfd2 {[%clk 0:02:14]}  Rf7 {[%clk 0:02:46]} 15. Nc4 {[%clk 0:02:12]}  Nxc4 {[%clk 0:02:44]} 16. Qxc4 {[%clk 0:02:11]}  d6 {[%clk 0:02:44]} 17. Nd2 {[%clk 0:02:11]}  Nc7 {[%clk 0:02:37]} 18. Rad1 {[%clk 0:01:58]}  Bf8 {[%clk 0:02:34]} 19. Ne4 {[%clk 0:01:48]}  Qd7 {[%clk 0:02:30]} 20. h4 {[%clk 0:01:35]}  h6 {[%clk 0:02:27]} 21. h5 {[%clk 0:01:35]}  f5 {[%clk 0:02:26]} 22. Nxc5 {[%clk 0:01:26]}  dxc5 {[%clk 0:02:22]} 23. d6 {[%clk 0:01:24]}  Bxg2 {[%clk 0:02:17]} 24. Kxg2 {[%clk 0:01:22]}  Ne8 {[%clk 0:02:14]} 25. Qxc5 {[%clk 0:01:18]}  Rd8 {[%clk 0:02:04]} 26. Qxb4 {[%clk 0:01:03]}  Nxd6 {[%clk 0:02:01]} 27. Rd2 {[%clk 0:00:47]}  Qb7+ {[%clk 0:01:59]} 28. Qxb7 {[%clk 0:00:39]}  Nxb7 {[%clk 0:02:00]} 29. Rxd8 {[%clk 0:00:40]}  Nxd8 {[%clk 0:02:00]} 30. Re8 {[%clk 0:00:41]}  Rd7 {[%clk 0:02:00]} 31. b4 {[%clk 0:00:39]}  Kf7 {[%clk 0:02:00]} 32. Re5 {[%clk 0:00:38]}  Bxb4 {[%clk 0:01:57]} 33. Rxf5+ {[%clk 0:00:36]}  Kg8 {[%clk 0:01:57]} 34. Rb5 {[%clk 0:00:29]}  a5 {[%clk 0:01:55]} 35. Be5 {[%clk 0:00:29]}  Ne6 {[%clk 0:01:54]} 36. f4 {[%clk 0:00:26]}  Nc5 {[%clk 0:01:54]} 37. Kf3 {[%clk 0:00:15]}  Rb7 {[%clk 0:01:53]} 38. Rxb7 {[%clk 0:00:12]}  Nxb7 {[%clk 0:01:54]} 39. Ke4 {[%clk 0:00:12]}  Nc5+ {[%clk 0:01:54]} 40. Kd5 {[%clk 0:00:12]}  Nxa4 {[%clk 0:01:53]} 41. g4 {[%clk 0:00:11]}  Bc3 {[%clk 0:01:52]} 42. Bd6 {[%clk 0:00:10]}  Nb6+ {[%clk 0:01:51]} 43. Kc6 {[%clk 0:00:09]}  Nc4 {[%clk 0:01:51]} 44. Bc5 {[%clk 0:00:08]}  Nd2 {[%clk 0:01:47]} 45. g5 {[%clk 0:00:06]}  Ne4 {[%clk 0:01:46]} 46. Be7 {[%clk 0:00:05]}  Kf7 {[%clk 0:01:45]} 47. gxh6 {[%clk 0:00:05]}  Kxe7 {[%clk 0:01:33]} 48. h7 {[%clk 0:00:03]}  g6 {[%clk 0:01:33]} 49. hxg6 {[%clk 0:00:00]}  a4 {[%clk 0:01:31]} 0-1


[Site "https://www.chess.com"]

[Event "Titled Tuesday Blitz August 22 Early 2023"]
[White "Kosakowski, Jakub"]
[Black "Namitbir Singh Walia"]
[WhiteFideId "1185080"]
[BlackFideId "35071068"]
[WhiteElo "2782"]
[BlackElo "2412"]
[Result "1-0"]
[Round "2"]
[TimeControl "180+1"]
[Date "2023.08.22"]
[WhiteClock "0:00:04"]
[BlackClock "0:00:00"]
[Board "140"]

1. d4 {[%clk 0:02:53]}  Nf6 {[%clk 0:02:58]} 2. Nf3 {[%clk 0:02:53]}  c5 {[%clk 0:02:57]} 3. e3 {[%clk 0:02:52]}  d5 {[%clk 0:02:52]} 4. dxc5 {[%clk 0:02:52]}  e6 {[%clk 0:02:52]} 5. a3 {[%clk 0:02:48]}  Bxc5 {[%clk 0:02:51]} 6. b4 {[%clk 0:02:49]}  Be7 {[%clk 0:02:51]} 7. Bb2 {[%clk 0:02:48]}  O-O {[%clk 0:02:52]} 8. Nbd2 {[%clk 0:02:47]}  a5 {[%clk 0:02:51]} 9. b5 {[%clk 0:02:46]}  a4 {[%clk 0:02:49]} 10. c4 {[%clk 0:02:45]}  Nbd7 {[%clk 0:02:45]} 11. Be2 {[%clk 0:02:43]}  Nb6 {[%clk 0:02:45]} 12. O-O {[%clk 0:02:39]}  Bd7 {[%clk 0:02:44]} 13. cxd5 {[%clk 0:02:36]}  Nfxd5 {[%clk 0:02:43]} 14. Rc1 {[%clk 0:02:34]}  Bf6 {[%clk 0:02:30]} 15. Nd4 {[%clk 0:02:19]}  Qe7 {[%clk 0:02:17]} 16. Ne4 {[%clk 0:02:16]}  Be5 {[%clk 0:02:12]} 17. Nc5 {[%clk 0:02:06]}  Be8 {[%clk 0:02:02]} 18. Nc6 {[%clk 0:01:58]}  bxc6 {[%clk 0:01:56]} 19. Bxe5 {[%clk 0:01:57]}  cxb5 {[%clk 0:01:51]} 20. e4 {[%clk 0:01:57]}  f6 {[%clk 0:01:40]} 21. Bg3 {[%clk 0:01:52]}  Rc8 {[%clk 0:01:40]} 22. exd5 {[%clk 0:01:49]}  Nxd5 {[%clk 0:01:33]} 23. Qd4 {[%clk 0:01:40]}  Bf7 {[%clk 0:01:33]} 24. Nd3 {[%clk 0:01:02]}  Qxa3 {[%clk 0:01:23]} 25. Nc5 {[%clk 0:00:31]}  e5 {[%clk 0:01:14]} 26. Qd3 {[%clk 0:00:31]}  Qxd3 {[%clk 0:00:18]} 27. Bxd3 {[%clk 0:00:32]}  Nc7 {[%clk 0:00:16]} 28. Bf5 {[%clk 0:00:30]}  Ra8 {[%clk 0:00:07]} 29. Nd7 {[%clk 0:00:30]}  Nd5 {[%clk 0:00:07]} 30. Nxf8 {[%clk 0:00:30]}  Kxf8 {[%clk 0:00:08]} 31. Rfd1 {[%clk 0:00:29]}  b4 {[%clk 0:00:07]} 32. Be4 {[%clk 0:00:29]}  b3 {[%clk 0:00:05]} 33. Bxd5 {[%clk 0:00:11]}  Bxd5 {[%clk 0:00:06]} 34. Rxd5 {[%clk 0:00:12]}  b2 {[%clk 0:00:06]} 35. Rb1 {[%clk 0:00:05]}  a3 {[%clk 0:00:06]} 36. Rb5 {[%clk 0:00:05]}  a2 {[%clk 0:00:07]} 37. R5xb2 {[%clk 0:00:05]}  a1=Q {[%clk 0:00:07]} 38. f4 {[%clk 0:00:06]}  Qa7+ {[%clk 0:00:06]} 39. Bf2 {[%clk 0:00:06]}  Qe7 {[%clk 0:00:05]} 40. Rb7 {[%clk 0:00:05]}  Qd6 {[%clk 0:00:05]} 41. fxe5 {[%clk 0:00:05]}  Qxe5 {[%clk 0:00:06]} 42. Re1 {[%clk 0:00:05]}  Qd5 {[%clk 0:00:05]} 43. Rc7 {[%clk 0:00:04]}  Re8 {[%clk 0:00:05]} 44. Rec1 {[%clk 0:00:03]}  g6 {[%clk 0:00:04]} 45. h3 {[%clk 0:00:03]}  h5 {[%clk 0:00:03]} 46. Ra7 {[%clk 0:00:02]}  Qg5 {[%clk 0:00:03]} 47. Rcc7 {[%clk 0:00:02]}  Qh6 {[%clk 0:00:02]} 48. Bc5+ {[%clk 0:00:02]}  Kg8 {[%clk 0:00:02]} 49. Bd4 {[%clk 0:00:03]}  Re1+ {[%clk 0:00:01]} 50. Kf2 {[%clk 0:00:03]}  Qd2+ {[%clk 0:00:01]} 51. Kg3 {[%clk 0:00:04]}  Qxd4 {[%clk 0:00:00]} 52. Rc8+ {[%clk 0:00:04]} 1-0


[Site "https://www.chess.com"]